bitfinex-derivatives/quotes_SOLF0:USTF0_20260302
["timestamp","ask_amount","ask_price","bid_price","bid_amount"]
[1772444356592,9.77051169,83.82,83.738,10.06685131]
[1772444356786,10.94389207,83.855,83.741,10.06685131]
[1772444356991,9.77051169,83.83,83.741,10.06685131]
[1772444357191,9.77051169,83.83,83.754,10.06685131]
[1772444358093,20.50651169,83.83,83.755,10.746]
[1772444358288,20.50651169,83.83,83.756,10.0766926]
[1772444358890,10.735,83.842,83.758,10.0766926]
[1772444359089,10.735,83.842,83.761,10.0766926]
[1772444360389,10.735,83.842,83.765,9.96315044]
[1772444360588,9.77051169,83.85,83.765,9.96315044]
[1772444361794,10.734,83.849,83.768,9.96746145]
[1772444362293,10.734,83.849,83.771,9.96556542]
[1772444363600,10.734,83.849,83.773,9.95723395]
[1772444364596,21.86071681,83.864,83.789,9.95537073]
[1772444364800,9.77051169,83.87,83.789,9.95537073]
[1772444366194,9.77051169,83.87,83.811,10.739]
[1772444366395,10.73,83.88,83.811,10.739]
[1772444366396,10.73,83.88,83.812,9.95957984]
[1772444367192,9.77051169,83.89,83.813,10.738]
[1772444367498,9.77051169,83.89,83.814,9.99272983]
[1772444368294,9.77051169,83.89,83.816,9.99105122]
[1772444368498,10.729,83.886,83.816,9.99105122]
[1772444370302,9.77051169,83.89,83.82,9.98288015]
[1772444371303,9.77051169,83.89,83.824,9.96672658]
[1772444372497,10.729,83.887,83.824,9.96672658]
[1772444374199,9.12238337,83.886,83.824,9.96672658]
[1772444374402,9.12238337,83.885,83.824,9.96672658]
[1772444374595,9.12238337,83.884,83.824,9.96672658]
[1772444374800,9.12238337,83.883,83.824,9.96672658]
[1772444374996,10.73,83.881,83.811,9.91131205]
[1772444375301,9.12238337,83.88,83.811,9.91131205]
[1772444375504,10.732,83.867,83.781,9.90923864]
[1772444375704,9.12238337,83.866,83.781,9.90923864]
[1772444375904,9.77051169,83.85,83.781,9.90923864]
[1772444376107,9.12238337,83.849,83.781,9.90923864]
[1772444376407,9.12238337,83.848,83.781,9.90923864]
[1772444376605,9.12238337,83.847,83.781,9.90923864]
[1772444376804,9.12238337,83.849,83.781,9.90923864]
[1772444377003,9.12238337,83.848,83.781,9.90923864]
[1772444377202,19.85638337,83.847,83.784,9.90592971]
[1772444377402,9.12238337,83.846,83.784,9.90592971]
[1772444377602,9.12238337,83.845,83.784,9.90592971]
[1772444377803,9.12238337,83.844,83.784,9.90592971]
[1772444378003,9.12238337,83.843,83.784,9.90592971]
[1772444378206,9.12238337,83.842,83.784,9.90592971]
[1772444378405,9.12238337,83.841,83.784,9.90592971]
[1772444378604,9.12238337,83.84,83.784,9.90592971]
[1772444378809,9.12238337,83.846,83.784,9.90592971]
[1772444379110,9.12238337,83.845,83.786,9.90428821]
[1772444379312,9.12238337,83.844,83.786,9.90428821]
[1772444379509,9.12238337,83.843,83.788,9.90430254]
[1772444379703,9.12238337,83.842,83.788,9.90430254]
[1772444379908,9.12238337,83.841,83.788,9.90430254]
[1772444380207,9.12238337,83.84,83.788,9.90430254]
[1772444380405,9.12238337,83.849,83.791,9.90270213]
[1772444380605,9.12238337,83.848,83.791,9.90270213]
[1772444380808,9.12238337,83.847,83.791,9.90270213]
[1772444381113,9.12238337,83.846,83.791,9.90270213]
[1772444381313,9.12238337,83.845,83.794,10.741]
[1772444381612,9.12238337,83.844,83.794,10.741]
[1772444381813,9.12238337,83.843,83.794,20.65959133]
[1772444382009,9.12238337,83.842,83.794,20.65959133]
[1772444382210,9.12238337,83.841,83.794,20.65959133]
[1772444382405,9.12238337,83.84,83.794,20.65959133]
[1772444382608,9.12238337,83.839,83.794,20.65959133]
[1772444382809,10.733,83.854,83.794,9.91859133]
[1772444383409,10.734,83.845,83.794,9.91859133]
[1772444383918,10.734,83.845,83.78,9.91498609]
[1772444385912,9.77051169,83.83,83.764,9.90974415]
[1772444386112,9.77051169,83.81,83.753,9.90974415]
[1772444387221,10.739,83.809,83.753,9.90974415]
[1772444390520,10.737,83.821,83.753,9.90974415]
[1772444392425,10.737,83.821,83.755,9.89648129]
[1772444392923,9.77051169,83.83,83.755,9.89648129]
[1772444394327,10.738,83.814,83.755,9.89648129]
[1772444397526,10.74,83.805,83.755,9.89648129]
[1772444398326,10.738,83.818,83.755,9.89648129]
[1772444398532,9.77051169,83.85,83.755,9.89648129]
[1772444399827,9.77051169,83.83,83.755,9.89648129]
[1772444400020,10.739,83.809,83.755,9.89648129]
[1772444400220,9.77051169,83.83,83.755,9.89648129]
[1772444401725,9.77051169,83.83,83.757,9.91082924]
[1772444402923,14.83281558,83.856,83.735,48.66609362]
[1772444402924,9.77051169,83.81,83.741,9.90965775]
[1772444403728,10.742,83.785,83.741,9.90965775]
[1772444405135,10.741,83.795,83.741,9.90965775]
[1772444405336,9.77051169,83.81,83.741,9.90965775]
[1772444405538,9.77051169,83.83,83.741,9.90965775]
[1772444405931,10.738,83.815,83.743,9.90949452]
[1772444406735,10.737,83.825,83.748,9.90837983]
[1772444407839,10.737,83.825,83.754,9.912561]
[1772444408233,10.738,83.817,83.754,9.912561]
[1772444409440,10.738,83.817,83.758,9.91677091]
[1772444412536,9.77051169,83.85,83.758,9.91677091]
[1772444412537,10.735,83.838,83.758,9.91677091]
[1772444412945,9.77051169,83.83,83.758,9.91677091]
[1772444413242,20.50651169,83.83,83.758,9.91677091]
[1772444413433,9.77051169,83.83,83.758,9.91677091]
[1772444414233,10.738,83.82,83.758,9.91677091]
[1772444417144,9.77051169,83.81,83.737,9.90340119]
[1772444417937,9.77051169,83.79,83.715,9.88352873]
[1772444418134,9.77051169,83.77,83.715,9.88352873]
[1772444418538,9.78071405,83.77,83.715,9.88352873]
[1772444418737,9.78071405,83.77,83.682,9.88257384]
[1772444418937,9.78071405,83.75,83.682,9.88257384]
[1772444419343,9.78071405,83.75,83.648,287.34878437]
[1772444419344,9.78071405,83.73,83.648,287.34878437]
[1772444419538,9.78071405,83.73,83.649,9.94085492]
[1772444420344,9.78071405,83.75,83.664,9.93998365]
[1772444423244,10.744,83.768,83.68,9.78071405]
[1772444423442,9.78071405,83.77,83.681,9.91664737]
[1772444423951,9.78071405,83.77,83.683,9.91664737]
[1772444425653,10.744,83.769,83.683,9.91664737]
[1772444426251,10.744,83.769,83.701,9.95525134]
[1772444428754,9.78071405,83.79,83.701,9.95525134]
[1772444428755,10.742,83.782,83.701,9.95525134]
[1772444429354,9.78071405,83.79,83.701,9.95525134]
[1772444430951,10.742,83.786,83.701,9.95525134]
[1772444431158,9.78071405,83.77,83.701,9.95525134]
[1772444433356,20.52171405,83.79,83.701,9.95525134]
[1772444434155,9.78071405,83.79,83.701,9.95525134]
[1772444434360,9.78071405,83.77,83.701,9.95525134]
[1772444436459,9.78071405,83.77,83.704,10.21028812]
[1772444439067,10.744,83.769,83.704,10.21028812]
[1772444440862,10.745,83.759,83.704,10.21028812]
[1772444441466,9.78071405,83.75,83.687,10.20834746]
[1772444442565,9.78071405,83.75,83.673,10.20798514]
[1772444443462,10.746,83.755,83.684,10.21031422]
[1772444443667,9.78071405,83.76,83.691,10.21031422]
[1772444447873,10.746,83.753,83.691,10.21031422]
[1772444448673,10.747,83.745,83.691,10.21031422]
[1772444449867,10.748,83.736,83.691,10.21031422]
[1772444450475,10.75,83.725,83.691,10.21031422]
[1772444450772,9.78071405,83.76,83.691,10.21031422]
[1772444451978,10.747,83.745,83.691,10.21031422]
[1772444455175,10.746,83.757,83.691,10.21031422]
[1772444456878,10.747,83.745,83.691,10.21031422]
[1772444457472,10.746,83.757,83.691,10.21031422]
[1772444459376,13.68135357,83.76,83.691,10.21031422]
[1772444459573,9.78071405,83.76,83.691,10.21031422]
[1772444460069,8.72738237,83.759,83.691,10.21031422]
[1772444460274,10.746,83.757,83.691,10.21031422]
[1772444460679,12.62802189,83.759,83.691,10.21031422]
[1772444460876,12.62802189,83.779,83.691,10.21031422]
[1772444461076,8.72738237,83.778,83.691,10.21031422]
[1772444461275,8.72738237,83.777,83.691,10.21031422]
[1772444461482,10.743,83.775,83.694,10.754]
[1772444461781,8.72738237,83.774,83.695,10.40423392]
[1772444462072,8.72738237,83.773,83.695,10.40423392]
[1772444462279,8.72738237,83.772,83.695,10.40423392]
[1772444462579,3.65107145,83.75,83.709,10.40406257]
[1772444463173,8.72738237,83.769,83.711,10.44061093]
[1772444463477,3.65107145,83.76,83.711,10.44061093]
[1772444464077,3.65107145,83.77,83.711,10.44061093]
[1772444464980,3.65107145,83.76,83.711,10.44061093]
[1772444467577,8.72738237,83.779,83.731,10.43259965]
[1772444467772,8.72738237,83.778,83.731,10.43259965]
[1772444467981,8.72738237,83.778,83.677,22.00516394]
[1772444467982,3.65107145,83.76,83.716,10.43259965]
[1772444468678,10.745,83.759,83.716,10.43259965]
[1772444469375,10.745,83.759,83.651,2.07893377]
[1772444469376,14.39807145,83.75,83.701,10.43799265]
[1772444471076,3.65107145,83.75,83.701,10.43799265]
[1772444471277,8.72738237,83.769,83.711,10.437854]
[1772444471482,3.65107145,83.76,83.711,10.437854]
[1772444472475,10.746,83.758,83.711,10.437854]
[1772444472876,3.65107145,83.76,83.711,10.437854]
[1772444473181,10.747,83.749,83.711,10.437854]
[1772444473684,3.65107145,83.76,83.711,10.437854]
[1772444473881,10.744,83.769,83.721,10.34509768]
[1772444475280,10.742,83.782,83.721,10.34509768]
[1772444475485,3.65107145,83.78,83.731,10.34428495]
[1772444476084,10.743,83.779,83.731,10.34428495]
[1772444476288,3.90063952,83.798,83.751,10.34411089]
[1772444476489,3.65107145,83.8,83.751,10.34411089]
[1772444476490,10.741,83.791,83.751,10.34411089]
[1772444476685,3.65107145,83.79,83.751,10.34411089]
[1772444477190,10.74,83.798,83.751,10.34411089]
[1772444477486,3.65107145,83.79,83.751,10.34411089]
[1772444480000,3.65107145,83.78,83.751,10.34411089]
[1772444480491,3.64868781,83.78,83.731,10.28412413]
[1772444480988,10.743,83.779,83.731,10.28412413]
[1772444482101,3.64868781,83.77,83.731,10.28412413]
[1772444483605,10.743,83.779,83.731,10.28412413]
[1772444485904,3.64868781,83.77,83.731,10.28412413]
[1772444486105,10.743,83.779,83.731,10.28412413]
[1772444490511,3.64868781,83.79,83.741,10.2672238]
[1772444490909,14.38968781,83.79,83.741,10.2672238]
[1772444491110,3.64868781,83.78,83.741,10.2672238]
[1772444491404,3.64868781,83.77,83.73,10.2669477]
[1772444492205,2.98444544,83.816,83.73,10.2669477]
[1772444492206,10.742,83.79,83.731,10.26678142]
[1772444492406,14.39068781,83.79,83.731,10.26678142]
[1772444492612,3.64868781,83.78,83.731,10.26678142]
[1772444494608,14.39068781,83.79,83.74,3.64868781]
[1772444494810,14.39068781,83.79,83.741,10.26814058]
[1772444496610,3.64868781,83.78,83.741,10.26814058]
[1772444498616,3.64868781,83.79,83.741,10.26814058]
[1772444501216,3.64868781,83.8,83.751,10.32975247]
[1772444503616,3.64868781,83.79,83.751,10.32975247]
[1772444503817,3.64868781,83.8,83.751,10.32975247]
[1772444504616,3.64868781,83.78,83.731,10.32772301]
[1772444505015,3.64868781,83.79,83.731,10.32772301]
[1772444506416,3.64868781,83.79,83.741,10.21511642]
[1772444507916,10.739,83.809,83.741,10.21511642]
[1772444507917,3.64868781,83.8,83.75,3.64868781]
[1772444508118,3.64868781,83.79,83.751,10.23234633]
[1772444508514,3.64868781,83.79,83.731,10.23219711]
[1772444508720,3.64868781,83.78,83.731,10.23219711]
[1772444512023,10.743,83.778,83.731,10.23219711]
[1772444516217,3.64868781,83.78,83.731,10.23219711]
[1772444516721,10.742,83.787,83.731,10.23219711]
[1772444517826,10.742,83.787,83.74,3.64868781]
[1772444518027,10.742,83.787,83.741,10.24633898]
[1772444518626,10.741,83.796,83.75,3.64868781]
[1772444518825,10.741,83.796,83.751,10.24621059]
[1772444524529,3.64868781,83.79,83.751,10.24621059]
[1772444526333,10.742,83.786,83.739,10.25425845]
[1772444527433,10.742,83.786,83.741,10.24339096]
[1772444531732,3.64868781,83.78,83.741,10.24339096]
[1772444534943,3.64868781,83.78,83.731,10.22393656]
[1772444537452,10.741,83.795,83.72,10.24189084]
[1772444537453,3.64868781,83.76,83.72,10.24189084]
[1772444538040,10.743,83.776,83.72,10.24189084]
[1772444538245,3.64868781,83.76,83.72,10.24189084]
[1772444538448,11.12152848,83.81,83.73,3.64868781]
[1772444538646,3.64868781,83.78,83.731,10.24178761]
[1772444540554,3.64888671,83.78,83.731,10.24178761]
[1772444545858,10.743,83.778,83.731,10.24178761]
[1772444546255,3.64888671,83.76,83.719,10.31619303]
[1772444546558,3.64888671,83.77,83.721,10.31611773]
[1772444547157,10.744,83.769,83.721,10.31611773]
[1772444547554,3.64888671,83.75,83.709,10.27762936]
[1772444548460,10.747,83.749,83.709,10.27762936]
[1772444549255,3.64888671,83.74,83.709,10.27762936]
[1772444549459,10.748,83.739,83.691,10.24494757]
[1772444550365,3.64888671,83.74,83.691,10.24494757]
[1772444551561,3.64888671,83.75,83.701,10.25752499]
[1772444551758,3.64888671,83.74,83.701,10.25752499]
[1772444552758,3.64888671,83.73,83.688,10.2574422]
[1772444552961,3.64888671,83.73,83.691,10.2574422]
[1772444553160,10.748,83.739,83.691,10.2574422]
[1772444555357,3.64888671,83.74,83.691,10.2574422]
[1772444555866,167.005,83.836,83.711,10.18202404]
[1772444555867,3.64888671,83.76,83.711,10.18202404]
[1772444556061,3.64888671,83.77,83.721,10.18202404]
[1772444562165,10.744,83.769,83.721,10.18202404]
[1772444564462,3.64888671,83.76,83.721,10.18202404]
[1772444565569,14.39388671,83.76,83.721,10.18202404]
[1772444565766,3.64888671,83.75,83.706,10.27217214]
[1772444567367,3.64888671,83.74,83.691,10.26725168]
[1772444568161,14.39588671,83.75,83.691,10.26725168]
[1772444568674,10.746,83.754,83.711,10.26718519]
[1772444570066,3.64888671,83.75,83.711,10.26718519]
[1772444571569,2.98410349,83.789,83.711,10.26718519]
[1772444571570,3.64888671,83.74,83.711,10.26718519]
[1772444571766,3.64888671,83.74,83.69,3.64888671]
[1772444571767,3.64888671,83.74,83.691,10.11832528]
[1772444573974,10.747,83.746,83.691,10.11832528]
[1772444576576,10.748,83.737,83.691,10.11832528]
[1772444577676,10.748,83.737,83.7,3.64888671]
[1772444577878,10.748,83.737,83.701,10.10368961]
[1772444578668,3.64888671,83.75,83.701,10.10368961]
[1772444578873,14.39588671,83.75,83.701,10.10368961]
[1772444580476,3.64888671,83.74,83.701,10.10368961]
[1772444581581,3.64888671,83.73,83.689,10.02121708]
[1772444581875,3.64888671,83.75,83.691,10.02121708]
[1772444582074,3.64888671,83.74,83.691,10.02121708]
[1772444586684,3.64888671,83.73,83.691,10.02121708]
[1772444587776,3.64888671,83.74,83.691,10.02121708]
[1772444595389,3.64888671,83.78,83.73,3.64888671]
[1772444595682,3.64888671,83.78,83.731,10.0086876]
[1772444596288,10.743,83.776,83.731,10.0086876]
[1772444600086,10.744,83.766,83.731,10.0086876]
[1772444602589,10.743,83.776,83.731,10.0086876]
[1772444603288,3.6499716,83.8,83.751,10.06320943]
[1772444604389,3.6499716,83.81,83.751,10.06320943]
[1772444605188,10.74,83.805,83.751,10.06320943]
[1772444606488,3.6499716,83.8,83.751,10.06320943]
[1772444607094,10.743,83.778,83.739,9.98817933]
[1772444607994,10.743,83.778,83.73,3.6499716]
[1772444608191,10.743,83.778,83.726,9.95741724]
[1772444608392,10.743,83.778,83.731,9.95735308]
[1772444608795,10.742,83.789,83.74,3.6499716]
[1772444609691,10.743,83.78,83.74,3.6499716]
[1772444609895,14.3929716,83.78,83.731,9.95735308]
[1772444611492,14.3929716,83.78,83.677,22.00516394]
[1772444611493,3.6499716,83.76,83.711,9.96016645]
[1772444612283,3.6499716,83.77,83.72,13.61007499]
[1772444612491,3.6499716,83.77,83.721,9.96010339]
[1772444612688,2.07751272,83.813,83.644,167.386]
[1772444612689,11.12134076,83.807,83.741,9.96010339]
[1772444612889,3.6499716,83.79,83.741,9.96010339]
[1772444613694,3.6499716,83.8,83.741,9.96010339]
[1772444614293,10.741,83.795,83.741,9.96010339]
[1772444614890,10.741,83.795,83.75,3.6499716]
[1772444615092,10.741,83.795,83.751,9.88007591]
[1772444615993,3.6499716,83.8,83.751,9.88007591]
[1772444616293,10.739,83.806,83.751,9.88007591]
[1772444616294,10.739,83.806,83.76,3.6499716]
[1772444616496,3.6499716,83.84,83.781,9.8722239]
[1772444617292,3.6499716,83.83,83.781,9.8722239]
[1772444617491,3.6499716,83.82,83.781,9.8722239]
[1772444618593,14.3859716,83.83,83.781,9.8722239]
[1772444621001,10.737,83.826,83.781,9.8722239]
[1772444621196,3.6499716,83.82,83.781,9.8722239]
[1772444623402,10.738,83.819,83.781,9.8722239]
[1772444623602,3.6499716,83.8,83.751,9.83975456]
[1772444623798,2.07701054,83.833,83.751,9.83975456]
[1772444623998,3.6499716,83.8,83.751,9.83975456]
[1772444625198,10.74,83.799,83.751,9.83975456]
[1772444629597,3.6499716,83.79,83.734,9.81016068]
[1772444630308,3.6499716,83.79,83.741,9.81016068]
[1772444630509,10.74,83.799,83.741,9.81016068]
[1772444633114,10.74,83.799,83.751,9.8523879]
[1772444635827,10.739,83.809,83.751,9.8523879]
[1772444636114,311.90715679,83.815,83.761,9.85701638]
[1772444638314,3.6499716,83.81,83.761,9.85701638]
[1772444641817,311.90715679,83.815,83.761,9.85701638]
[1772444642018,311.90715679,83.815,83.753,10.746]
[1772444642019,311.90715679,83.815,83.771,9.85272006]
[1772444643423,3.6499716,83.81,83.771,9.85272006]
[1772444643819,311.90715679,83.815,83.771,9.85272006]
[1772444645621,3.6499716,83.81,83.771,9.85272006]
[1772444645927,10.74,83.799,83.751,9.87958704]
[1772444648925,3.6499716,83.81,83.751,9.87958704]
[1772444649229,311.90715679,83.815,83.703,167.269]
[1772444649230,311.90715679,83.815,83.771,9.88790255]
[1772444650323,3.6499716,83.83,83.78,3.6499716]
[1772444650523,3.6499716,83.83,83.781,9.89147523]
[1772444650928,10.737,83.828,83.781,9.89147523]
[1772444651130,3.6499716,83.82,83.781,9.89147523]
[1772444656132,3.6499716,83.81,83.766,9.90023956]
[1772444662536,3.64648936,83.81,83.766,9.90023956]
[1772444667936,14.38548936,83.81,83.766,9.90023956]
[1772444668743,3.64648936,83.81,83.766,9.90023956]
[1772444673938,2.98273305,83.837,83.799,9.90282845]
[1772444674247,2.98273305,83.837,83.746,36.24647701]
[1772444674248,3.64648936,83.85,83.801,9.90282845]
[1772444674747,3.64648936,83.86,83.811,9.90279664]
[1772444675338,3.64648936,83.87,83.821,10.04588196]
[1772444675644,3.64648936,83.88,83.831,10.04588196]
[1772444675951,3.64648936,83.89,83.841,10.04588196]
[1772444676145,10.727,83.901,83.841,10.04588196]
[1772444676345,3.64648936,83.89,83.841,10.04588196]
[1772444678450,3.64648936,83.9,83.851,9.88348083]
[1772444678844,3.64648936,83.92,83.871,9.88348083]
[1772444681250,3.64648936,83.89,83.841,9.95708207]
[1772444681440,3.64648936,83.87,83.821,9.95708207]
[1772444681647,3.64648936,83.86,83.821,9.95708207]
[1772444682547,3.64648936,83.87,83.821,9.95708207]
[1772444682752,3.64648936,83.88,83.821,9.95708207]
[1772444682951,3.64648936,83.87,83.821,9.95708207]
[1772444687455,10.731,83.869,83.821,9.95708207]
[1772444687653,3.64648936,83.85,83.807,10.15369852]
[1772444694961,3.64648936,83.86,83.811,10.24291085]
[1772444695165,10.732,83.863,83.811,10.24291085]
[1772444695665,3.64648936,83.87,83.811,10.24291085]
[1772444696367,3.64648936,83.87,83.821,10.24407145]
[1772444696965,10.731,83.868,83.821,10.24407145]
[1772444697466,3.64648936,83.86,83.821,10.24407145]
[1772444700267,1.7550508,83.849,83.76,14.72587626]
[1772444700472,3.64648936,83.84,83.76,14.72587626]
[1772444700674,2.98098423,83.904,83.706,204.0096208]
[1772444700675,1.7550508,83.844,83.77,3.64648936]
[1772444700969,3.64648936,83.85,83.79,3.64648936]
[1772444701670,1.7632623,83.852,83.8,3.64648936]
[1772444701871,10.733,83.856,83.8,3.64648936]
[1772444702072,3.64648936,83.85,83.8,3.64648936]
[1772444702273,3.64648936,83.85,83.801,5.62541842]
[1772444703970,10.734,83.849,83.801,5.62541842]
[1772444704469,1.86723361,83.865,83.801,5.62541842]
[1772444704675,3.64648936,83.86,83.811,5.62541842]
[1772444704874,1.86723361,83.865,83.811,5.62541842]
[1772444706272,10.732,83.864,83.811,5.62541842]
[1772444706466,1.91407681,83.879,83.821,5.62541842]
[1772444707673,1.99743315,83.877,83.821,5.62541842]
[1772444710575,1.99743315,83.877,83.822,5.62541842]
[1772444712478,2.0100744,83.859,83.81,5.62541842]
[1772444713880,2.0100744,83.859,83.811,5.71558178]
[1772444714471,3.64648936,83.87,83.811,5.71558178]
[1772444714673,5.69096408,83.87,83.811,5.71558178]
[1772444714876,2.05143591,83.869,83.811,5.71558178]
[1772444715076,12.78343591,83.867,83.811,5.71558178]
[1772444715272,2.05143591,83.866,83.811,5.71558178]
[1772444716375,10.732,83.863,83.811,5.71558178]
[1772444722083,2.18464276,83.862,83.811,5.71558178]
[1772444722889,2.19151951,83.859,83.811,5.71558178]
[1772444723594,2.19298672,83.849,83.8,5.85177901]
[1772444724293,2.19916879,83.839,83.8,5.85177901]
[1772444724888,2.19916879,83.839,83.784,5.85177901]
[1772444725297,2.19916879,83.839,83.791,5.85177901]
[1772444725694,2.25392292,83.858,83.811,5.85177901]
[1772444727591,2.25277033,83.859,83.811,5.85177901]
[1772444727986,2.25869959,83.849,83.798,5.85177901]
[1772444728194,2.25869959,83.839,83.798,5.85177901]
[1772444729098,2.26507301,83.829,83.781,5.85177901]
[1772444732798,2.26662989,83.828,83.781,5.85177901]
[1772444733289,2.26662989,83.828,83.77,3.64211809]
[1772444733290,2.27221908,83.819,83.77,3.64211809]
[1772444733695,2.27221908,83.819,83.771,5.85177901]
[1772444733897,3.64211809,83.81,83.771,5.85177901]
[1772444734091,3.64211809,83.81,83.76,3.64211809]
[1772444734092,2.26807086,83.809,83.761,5.85177901]
[1772444734797,3.64211809,83.81,83.761,5.85177901]
[1772444735003,2.27408911,83.819,83.761,5.85177901]
[1772444736000,13.07761448,83.801,83.761,5.85177901]
[1772444736302,2.33761448,83.799,83.761,5.85177901]
[1772444737199,2.34345945,83.789,83.748,5.85177901]
[1772444738202,13.0809434,83.787,83.748,5.85177901]
[1772444738401,2.33944129,83.786,83.748,5.85177901]
[1772444739803,2.33944129,83.786,83.75,3.64211809]
[1772444740001,2.33838497,83.802,83.751,5.85177901]
[1772444740203,2.33838497,83.822,83.781,5.85177901]
[1772444740600,3.64211809,83.82,83.781,5.85177901]
[1772444740804,5.51704673,83.789,83.704,32.32585347]
[1772444741105,5.51704673,83.779,83.73,3.64211809]
[1772444741403,3.64211809,83.79,83.74,3.64211809]
[1772444741607,5.51704673,83.789,83.74,3.64211809]
[1772444741800,3.64211809,83.79,83.73,3.64211809]
[1772444741801,5.51704673,83.785,83.73,3.64211809]
[1772444742806,167.011,83.833,83.73,5.85177901]
[1772444742807,9.15916482,83.77,83.73,5.85177901]
[1772444743105,5.51704673,83.769,83.73,5.85177901]
[1772444744206,10.744,83.768,83.73,5.85177901]
[1772444745108,5.51704673,83.785,83.741,5.85177901]
[1772444746302,166.979,83.849,83.721,5.85177901]
[1772444746303,3.64211809,83.77,83.721,5.85177901]
[1772444746507,5.51704673,83.778,83.721,5.85177901]
[1772444746708,5.51704673,83.778,83.731,5.85177901]
[1772444748610,10.742,83.784,83.741,5.86738366]
[1772444749211,10.743,83.781,83.741,5.86738366]
[1772444750112,10.743,83.779,83.741,5.86738366]
[1772444754718,10.742,83.789,83.741,5.86738366]
[1772444755309,10.742,83.789,83.683,2.07701674]
[1772444755310,10.739,83.807,83.751,5.86738366]
[1772444755515,10.739,83.807,83.761,5.86738366]
[1772444755710,10.739,83.807,83.77,3.64211809]
[1772444755916,6.0117081,83.823,83.78,3.64211809]
[1772444756419,6.0117081,83.823,83.771,5.86738366]
[1772444756721,3.64211809,83.83,83.781,5.86738366]
[1772444757018,10.736,83.833,83.781,5.86738366]
[1772444757319,10.737,83.824,83.781,5.86738366]
[1772444757618,6.0117081,83.819,83.76,3.64211809]
[1772444757819,6.0117081,83.809,83.761,5.86738366]
[1772444758215,3.64211809,83.82,83.696,468.58711771]
[1772444758216,10.738,83.819,83.771,5.86738366]
[1772444759015,10.738,83.814,83.771,5.86738366]
[1772444759516,10.739,83.812,83.771,5.86738366]
[1772444759819,6.0117081,83.811,83.771,5.86738366]
[1772444760319,10.741,83.797,83.745,5.86738366]
[1772444760519,21.85191741,83.842,83.745,5.86738366]
[1772444760520,6.0117081,83.796,83.75,3.64211809]
[1772444760718,6.0117081,83.796,83.75,9.50950175]
[1772444761219,10.741,83.791,83.75,9.50950175]
[1772444762618,10.741,83.791,83.751,6.13360245]
[1772444762819,6.0117081,83.796,83.76,3.64211809]
[1772444763120,5.91551957,83.819,83.761,6.13360245]
[1772444763324,5.91551957,83.819,83.77,9.77572054]
[1772444764218,5.91551957,83.806,83.76,3.64211809]
[1772444764715,5.91551957,83.799,83.75,3.64211809]
[1772444765023,3.64211809,83.8,83.743,6.13360245]
[1772444765024,16.65751957,83.785,83.743,6.13360245]
[1772444765419,5.91551957,83.784,83.743,6.13360245]
[1772444765619,3.64211809,83.8,83.743,6.13360245]
[1772444765826,5.91551957,83.813,83.761,6.13360245]
[1772444766025,3.64211809,83.81,83.761,6.13360245]
[1772444766224,5.91551957,83.809,83.761,6.13360245]
[1772444767323,10.74,83.8,83.761,6.13360245]
[1772444767526,5.91551957,83.799,83.75,3.64211809]
[1772444767824,5.91551957,83.799,83.751,6.13360245]
[1772444768429,10.741,83.794,83.751,6.13360245]
[1772444768630,5.91551957,83.815,83.761,6.13360245]
[1772444769025,5.91551957,83.802,83.75,3.64211809]
[1772444769428,5.91551957,83.802,83.75,9.77572054]
[1772444770225,10.74,83.798,83.75,9.77572054]
[1772444771632,10.74,83.798,83.751,6.13360245]
[1772444771834,5.91551957,83.802,83.751,6.13360245]
[1772444772033,10.739,83.807,83.761,6.13360245]
[1772444772229,3.64211809,83.83,83.771,6.13360245]
[1772444772430,5.91551957,83.829,83.771,6.13360245]
[1772444773234,10.738,83.818,83.771,6.13360245]
[1772444775633,10.738,83.814,83.771,6.13360245]
[1772444778138,10.739,83.812,83.771,6.13360245]
[1772444778735,5.94641659,83.804,83.761,5.7619694]
[1772444779338,5.94641659,83.804,83.75,3.64211809]
[1772444780232,5.94641659,83.798,83.751,5.7619694]
[1772444780434,5.94641659,83.798,83.695,35.84]
[1772444780435,5.94641659,83.81,83.761,5.7619694]
[1772444781337,10.739,83.808,83.761,5.7619694]
[1772444783535,10.739,83.808,83.727,22.04941884]
[1772444783536,5.94641659,83.823,83.781,5.7619694]
[1772444785836,10.737,83.822,83.781,5.7619694]
[1772444786237,5.94641659,83.819,83.761,5.7619694]
[1772444787040,3.64451901,83.81,83.761,5.7619694]
[1772444787236,10.74,83.798,83.761,5.7619694]
[1772444787643,5.94641659,83.809,83.761,5.7619694]
[1772444789236,10.739,83.808,83.761,5.7619694]
[1772444789637,5.94641659,83.809,83.761,5.7619694]
[1772444791143,322.40347024,83.825,83.781,5.7619694]